Cogmind - Beta 16 @@@ ROGUE MODE // 2025.12.24 @ 19:42:51 Player: k1ll3rb0t Result: Destroyed by AD-0RF with AD-0RF's Magmablaster Performance ------------- Evolutions (1) 500 Regions Visited (5) 1000 Robots Destroyed (62) 310 Value Destroyed (1643) 1643 Prototype IDs (26) 520 Alien Tech Used (0) 0 Bonus (300) 300 TOTAL SCORE: 4273 Bonus ------- Aligned with FarCom 300 Cogmind --------- Core Integrity 0/400 Matter 41/300 Energy 100/100 System Corruption 0% Temperature Cool (20) Movement Rolling (135) Ox3 Location -8/Mines Parts ------- > --- POWER (1) -------- (None) > --- PROPULSION (3) --- Armored Wheel > --- UTILITY (3) ------ High-capacity Storage Unit Seismic Detector > --- WEAPON (2) ------- Mace > --- INVENTORY (20) --- Cooled Ion Engine Advanced Treads Advanced Treads Superbattery (1500) Experimental Targeting Computer Advanced Weapon Cycler 8R-AWN's Armor/EX Hacking Suite Improved Assault Rifle Improved Assault Rifle Improved Assault Rifle Improved Assault Rifle Grenade Launcher Grenade Launcher Field Lobotomy Kit (5) Plasma Cutter Peak State ------------ > --- POWER ------------ Heavy Ion Engine > --- PROPULSION ------- Light Treads Advanced Treads Advanced Treads > --- UTILITY ---------- Improved Heat Sink High-capacity Storage Unit Seismic Detector > --- WEAPON ----------- Improved Assault Rifle Improved Assault Rifle > --- INVENTORY -------- Cooled Ion Engine Advanced Treads Advanced Treads Compact Wheel Armored Wheel Superbattery Experimental Targeting Computer Advanced Weapon Cycler 8R-AWN's Armor/EX Hacking Suite Improved Assault Rifle Improved Assault Rifle Grenade Launcher Grenade Launcher Field Lobotomy Kit Plasma Cutter Mace [Rating: 30] Favorites ----------- Power Heavy Ion Engine Engine Heavy Ion Engine Propulsion Light Treads Treads Light Treads Leg Aluminum Leg Wheel Compact Wheel Utility High-capacity Storage Unit Device Improved Heat Sink Storage High-capacity Storage Unit Protection Medium Armor Plating Weapon Improved Assault Rifle Energy Gun Medium Laser Energy Cannon Beam Cannon Ballistic Gun Improved Assault Rifle Ballistic Cannon Flak Cannon Launcher Grenade Launcher Special Weapon Mining Laser Impact Weapon Mace Build | -11 -10 -9 -9 -9 -8 ------- Run | Yrd Mat Mat Min Exi Min Slots Evolved 2 | . . 2 . . . Power . | . . . . . . Propulsion 1 | . . 1 . . . Utility 1 | . . 1 . . . Weapon . | . . . . . . Parts Attached 58 | 7 16 26 . 7 2 Power 11 | 1 3 7 . . . Engine 11 | 1 3 7 . . . Core . | . . . . . . Reactor . | . . . . . . Propulsion 17 | 2 4 8 . 2 1 Treads 6 | . . 4 . 2 . Leg 3 | 2 1 . . . . Wheel 8 | . 3 4 . . 1 Hover . | . . . . . . Flight . | . . . . . . Utility 13 | 2 3 6 . 2 . Device 6 | 1 2 3 . . . Storage 2 | 1 1 . . . . Processor . | . . . . . . Hackware . | . . . . . . Protection 5 | . . 3 . 2 . Artifact . | . . . . . . Weapon 17 | 2 6 5 . 3 1 Energy Gun 1 | 1 . . . . . Energy Cannon 3 | . 3 . . . . Ballistic Gun 6 | 1 1 2 . 2 . Ballistic Cannon 2 | . . 2 . . . Launcher 3 | . 1 1 . 1 . Special Weapon 1 | . 1 . . . . Impact Weapon 1 | . . . . . 1 Slashing Weapon . | . . . . . . Piercing Weapon . | . . . . . . Special Melee Weapon . | . . . . . . Unidentified Prototypes 3 | . . 3 . . . Parts Lost 20 | . 6 3 . 4 7 Power 3 | . 2 . . . 1 Propulsion 7 | . 1 1 . 1 4 Utility 6 | . 1 1 . 3 1 Weapon 4 | . 2 1 . . 1 Highest Loss Streak 4 | . 2 2 . 3 4 To Critical Strikes 1 | . . . . 1 . Average Backups 16 | 4 11 19 20 19 16 Power 1 | . . 1 1 1 1 Propulsion 4 | 2 4 6 5 4 2 Utility 4 | . 3 5 5 4 5 Weapon 6 | . 2 7 8 7 6 Tool/Special . | . . . . . . Unused Backups 30 | 1 4 8 . 4 13 Power 6 | 1 1 . . 3 1 Propulsion 7 | . 2 3 . . 2 Utility 10 | . . 4 . 1 5 Weapon 5 | . 1 1 . . 3 Tool/Special 2 | . . . . . 2 Average Slot Usage (%) 98 | . 99 98 100 98 86 Engine 11 | . 13 11 11 11 8 Treads 17 | . . 20 22 25 17 Leg 3 | . 12 . . . . Wheel 11 | . 15 11 11 7 11 Device 12 | . 13 13 11 11 16 Storage 11 | . 14 11 11 11 11 Protection 6 | . . 7 11 9 . Energy Cannon 4 | . 11 4 . . . Ballistic Gun 15 | . 13 9 22 20 10 Ballistic Cannon 1 | . . 6 . . . Peak Build Rating 30 | 8 9 22 22 30 30 Average Rating 17 | 5 8 17 22 23 25 On Entrance 15 | . 8 9 22 22 30 Avg Prop Armor Cover (%) 13 | . . 12 14 14 14 Naked Turns . | . . . . . . Heaviest Build 68 | 13 52 62 62 68 56 Greatest Support 64 | 20 32 40 16 64 64 Greatest Overweight (x) 3 | . 1 3 3 3 3 Average Overweight (x) 1 | . . 2 3 2 1 Largest Inventory Capacity 20 | 8 20 20 20 20 20 Average Capacity 18 | 7 14 20 20 20 20 Most Carried 20 | 8 20 20 20 20 20 Average Carried 17 | 4 11 19 20 19 18 Final Capacity 20 | 8 20 20 20 20 20 Final Carried 20 | 8 20 20 20 20 18 Class Distribution -------------------- 55% | Mutant 44% | Scavenger-Mutant Dominant Class ---------------- Mutant | -10/Materials Scavenger-Mutant | -9/Materials Scavenger-Mutant | -9/Mines Scavenger-Mutant | -9/Exiles Mutant | -8/Mines Resources | -11 -10 -9 -9 -9 -8 ----------- Run | Yrd Mat Mat Min Exi Min Matter Collected 1596 | 186 482 775 . 139 14 Remotely . | . . . . . . Salvage Created 2129 | 39 849 1079 . 123 39 Parts 115 | 6 48 58 . 3 . Haulers Intercepted 3 | . 1 2 . . . Recyclers Shooed 2 | . . 2 . . . Parts Field Recycled . | . . . . . . Retrieved Matter . | . . . . . . Parts Self-Destructed . | . . . . . . Prevented . | . . . . . . Parts Restored . | . . . . . . Kills | -11 -10 -9 -9 -9 -8 ------- Run | Yrd Mat Mat Min Exi Min Combat Hostiles Destroyed 49 | . 19 25 . 5 . Guns 10 | . 5 3 . 2 . Cannons 31 | . 11 20 . . . AOE 7 | . 2 2 . 3 . Classes Destroyed 11 | 1 7 1 . 2 . Worker 1 | . 1 . . . . Tunneler 5 | 2 1 . . . 2 Hauler 3 | . 1 2 . . . Recycler 3 | . 1 2 . . . Operator 1 | . 1 . . . . Turret 1 | . . . . 1 . Watcher 4 | . 1 3 . . . Swarmer 6 | . 6 . . . . Grunt 33 | . 13 20 . . . Sentry 5 | . . 5 . . . Assembled 4 | . . . . 4 . Best Kill Streak 7 | 1 5 7 . 4 1 Combat Bots Only 6 | . 4 6 . 4 . Max Kills in Single Turn 3 | 1 3 1 . 2 1 Gunslinging . | . . . . . . Exploded 2 | . 2 1 . 2 . Melee . | . . . . . . Uniques/NPCs Destroyed 1 | . . . . 1 . 8R-AWN (-9/Exiles) Combat | -11 -10 -9 -9 -9 -8 -------- Run | Yrd Mat Mat Min Exi Min Hostile Shots Fired 361 | . 102 117 . 70 72 Missed 74 | . 22 31 . 17 4 Hits 287 | . 80 86 . 53 68 Melee 2 | . . . . 2 . Projectile 285 | . 80 86 . 51 68 Critical Strikes 23 | . . 1 . 22 . Part Disruptions 2 | . . . . . 2 Damage Taken 3935 | . 990 1039 . 1057 849 Core 545 | . 133 66 . 81 265 Absorbed by Shields . | . . . . . . Core Remaining (%) 73 | 100 46 . . . . Volleys Fired 202 | 5 79 75 . 43 . Largest 2 | 2 2 2 . 2 . Hottest 100 | 70 100 97 . 46 . Shots Fired 367 | 10 148 142 . 67 . Gun 181 | 10 80 42 . 49 . Cannon 163 | . 66 97 . . . Launcher 22 | . 1 3 . 18 . Special 1 | . 1 . . . . Kinetic 227 | 5 77 96 . 49 . Thermal 118 | 5 70 43 . . . Explosive 22 | . 1 3 . 18 . Electromagnetic . | . . . . . . Robot Hit Streak 36 | 6 12 12 . 36 . Robot Miss Streak 7 | 1 7 6 . 2 . Penetration Max . | . . . . . . Secondary Targets . | . . . . . . Shots Hit Robots 245 | 7 79 111 . 46 2 Core Hits 136 | 2 32 76 . 26 . Critical Kills 1 | . 1 . . . . Critical Parts Destroyed . | . . . . . . Critical Strikes 2 | . 1 . . 1 . Meltdown 1 | . 1 . . . . Destroy 1 | . . . . 1 . Melee Attacks 2 | . . . . . 2 Impact 2 | . . . . . 2 Slashing . | . . . . . . Piercing . | . . . . . . Sneak Attacks 2 | . . . . . 2 Combat Hostiles . | . . . . . . Follow-up Attacks . | . . . . . . Damage Inflicted 5050 | 86 1312 2291 . 1244 117 Guns 1798 | 86 527 520 . 665 . Cannons 2240 | . 678 1562 . . . Explosions 895 | . 107 209 . 579 . Melee 117 | . . . . . 117 Ramming . | . . . . . . Kinetic 2649 | 24 514 1446 . 665 . Thermal 1389 | 62 691 636 . . . Explosive 837 | . 49 209 . 579 . Electromagnetic 58 | . 58 . . . . Impact 117 | . . . . . 117 Slashing . | . . . . . . Piercing . | . . . . . . Highest Corruption . | . . . . . . Average Corruption . | . . . . . . Corruption Purged . | . . . . . . Corruption Blocked . | . . . . . . Overload Shots . | . . . . . . Overflow Damage 130 | . 18 . . 55 57 Projectiles 7 | . 7 . . . . Explosions 66 | . 11 . . 55 . Melee 57 | . . . . . 57 Knockbacks 27 | . . 25 . . 2 Impact 2 | . . . . . 2 Kinetic 21 | . . 21 . . . Secondary 4 | . . 4 . . . Self-Inflicted Damage 101 | . 61 . . 40 . Shots 3 | . 2 . . 1 . Rammed . | . . . . . . Targets Rammed . | . . . . . . Kicked . | . . . . . . Crushed . | . . . . . . Highest Temperature 384 | 18 189 384 . . 58 Average Temperature 66 | 9 85 66 . . 33 Received Heat Transfer 2263 | . 453 510 . . 1300 Siege Activations . | . . . . . . Martial Activations . | . . . . . . Shielding Activations . | . . . . . . Robots Disrupted . | . . . . . . Combat Hostiles . | . . . . . . Robots Corrupted 2 | . . . . . 2 Combat Hostiles . | . . . . . . Parts Fried 4 | . . . . . 4 Impact Corruptions 3 | . . . . . 3 Robots Melted 1 | . 1 . . . . Combat Hostiles 1 | . 1 . . . . Parts Melted 4 | 1 2 1 . . . Heat Transferred 2997 | 185 1480 1332 . . . Parts Sabotaged . | . . . . . . Parts Stolen . | . . . . . . Parts Stripped . | . . . . . . Power Chain Reactions 1 | . 1 . . . . Alert | -11 -10 -9 -9 -9 -8 ------- Run | Yrd Mat Mat Min Exi Min Maximum Alert Level 1 | . 1 1 . . . Low Security (%) 75 | 100 98 38 100 . 100 Level 1 24 | . 1 61 . . . Level 2 . | . . . . . . Level 3 . | . . . . . . Level 4 . | . . . . . . Level 5 . | . . . . . . High Security . | . . . . . . Max Security . | . . . . . . Peak Influence 390 | 5 203 390 121 . 30 Initial 121 | . . 68 121 . . Average 129 | 1 72 237 84 . 1 Influence Increases 1379 | 10 592 737 . . 40 Destroy 0b10 Robot/C 880 | . 380 500 . . . Destroy 0b10 Robot/NC 85 | 10 30 35 . . 10 Destroy Leader 204 | . 84 120 . . . Successful Hack 35 | . 6 29 . . . Disable Machine 45 | . 30 15 . . . Destroy Structure 25 | . 17 8 . . . Partial Spotted 15 | . . 15 . . . Lose Combat Pursuer 90 | . 45 15 . . 30 Influence Decreases 1369 | 10 429 589 270 41 30 Entered New Map 326 | . . 95 190 41 . Time Decay 943 | 10 369 464 80 . 20 Lost Part 100 | . 60 30 . . 10 Squads Dispatched 8 | . 4 4 . . . Investigation 4 | . 3 1 . . . Extermination . | . . . . . . Reinforcement 4 | . 1 3 . . . Assault . | . . . . . . Garrison . | . . . . . . Intercept . | . . . . . . Searches Triggered . | . . . . . . Construction Impeded 1 | . . 1 . . . Haulers Reinforced . | . . . . . . Active Scanning Responses . | . . . . . . Cargo Convoy Interrupts . | . . . . . . Stealth | -11 -10 -9 -9 -9 -8 --------- Run | Yrd Mat Mat Min Exi Min Distress Signals 9 | . 2 7 . . . Communications Jammed . | . . . . . . Distress Signals . | . . . . . . Times Spotted 83 | . 32 35 . 8 8 Peak Tracking Total 9 | . 6 8 . 9 7 Tactical Retreats 4 | . 2 1 . . 1 Traps | -11 -10 -9 -9 -9 -8 ------- Run | Yrd Mat Mat Min Exi Min Traps Triggered 2 | . 2 . . . . Indirectly 1 | . 1 . . . . Trap Hack Attempts . | . . . . . . Triggered . | . . . . . . Disarmed . | . . . . . . Reprogrammed . | . . . . . . Reused . | . . . . . . Traps Extracted . | . . . . . . Installed . | . . . . . . Triggered . | . . . . . . Machines | -11 -10 -9 -9 -9 -8 ---------- Run | Yrd Mat Mat Min Exi Min Machines Disabled 6 | . 2 1 . 3 . Max in Single Turn 2 | . 2 1 . 1 . Machines Repaired . | . . . . . . Machines Dismantled . | . . . . . . Machines Sabotaged . | . . . . . . Overloaded Fab Kills . | . . . . . . Hacking | -11 -10 -9 -9 -9 -8 --------- Run | Yrd Mat Mat Min Exi Min Machines Accessed 16 | . 8 4 . 4 . Terminals 11 | . 7 4 . . . Fabricators . | . . . . . . Repair Stations . | . . . . . . Recycling Units 1 | . 1 . . . . Scanalyzers . | . . . . . . Garrison Access . | . . . . . . Total Hacks 37 | . 20 10 . 7 . Successful 17 | . 6 4 . 7 . Failed 20 | . 14 6 . . . Catastrophic 7 | . 5 2 . . . Database Lockouts . | . . . . . . Manual 16 | . 9 6 . 1 . Terminals 29 | . 19 10 . . . Fabricators . | . . . . . . Repair Stations . | . . . . . . Recycling Units 1 | . 1 . . . . Scanalyzers . | . . . . . . Garrison Access . | . . . . . . Terminal Hacks 17 | . 6 4 . 7 . Record 7 | . 1 . . 6 . Branch Access Points 2 | . 1 1 . . . Locate Traps 4 | . 3 1 . . . Hauler Manifests 2 | . 1 1 . . . Registered Components 1 | . . 1 . . . Proto ID Catalog 1 | . . . . 1 . Fabricator Hacks . | . . . . . . Repair Station Hacks . | . . . . . . Recycling Unit Hacks . | . . . . . . Scanalyzer . | . . . . . . Garrison Access Hacks . | . . . . . . Unauthorized Hacks . | . . . . . . Terminals . | . . . . . . Fabricators . | . . . . . . Repair Stations . | . . . . . . Recycling Units . | . . . . . . Scanalyzers . | . . . . . . Garrison Access . | . . . . . . Data Cores Recovered . | . . . . . . Used . | . . . . . . Hacking Detections 10 | . 7 3 . . . Full Trace Events 2 | . 1 1 . . . Feedback Events . | . . . . . . Feedback Blocked . | . . . . . . Robot Schematics Acquired . | . . . . . . Robots Built . | . . . . . . Authchips . | . . . . . . Time . | . . . . . . Total Robot Build Rating . | . . . . . . Part Schematics Acquired . | . . . . . . Parts Built . | . . . . . . Authchips . | . . . . . . Time . | . . . . . . Total Part Build Rating . | . . . . . . Part Studies Acquired . | . . . . . . Parts Repaired . | . . . . . . Time . | . . . . . . Parts Recycled . | . . . . . . Recycled Matter . | . . . . . . Retrieved Matter . | . . . . . . Retrieved Components . | . . . . . . Parts Scanalyzed . | . . . . . . Part Schematics Acquired . | . . . . . . Parts Damaged . | . . . . . . Bothacking | -11 -10 -9 -9 -9 -8 ------------ Run | Yrd Mat Mat Min Exi Min Used RIF Installer . | . . . . . . Robots Hacked . | . . . . . . Non-combat . | . . . . . . Combat . | . . . . . . Robot Hacks Applied . | . . . . . . Relay Couplers Released . | . . . . . . Fabnet Peak Effective % . | . . . . . . Robots Rewired . | . . . . . . Allies Hacked . | . . . . . . Hacks Repelled . | . . . . . . Allies | -11 -10 -9 -9 -9 -8 -------- Run | Yrd Mat Mat Min Exi Min Total Allies . | . . . . . . Largest Group . | . . . . . . Highest-Rated Group . | . . . . . . Highest-Rated Ally . | . . . . . . Total Orders . | . . . . . . Ally Attacks . | . . . . . . Total Damage . | . . . . . . Kills . | . . . . . . Allies Corrupted . | . . . . . . Allies Melted . | . . . . . . Intel | -11 -10 -9 -9 -9 -8 ------- Run | Yrd Mat Mat Min Exi Min Active Infowar (turns) 1027 | 12 323 211 . 230 251 Seismic 1027 | 12 323 211 . 230 251 Robot Analysis Total . | . . . . . . Derelict Logs Recovered 1 | . . . 1 . . Drone Launches . | . . . . . . Drone Recoveries . | . . . . . . Exploration | -11 -10 -9 -9 -9 -8 ------------- Run | Yrd Mat Mat Min Exi Min Turns Passed 5044 | 121 1272 1190 163 2047 251 Spaces Moved 2981 | 75 790 544 111 1284 177 Core 8 | 8 . . . . . Treads 367 | . . 56 . 277 34 Legs 393 | 67 326 . . . . Wheels 2213 | . 464 488 111 1007 143 Hover . | . . . . . . Flight . | . . . . . . Fastest Speed 50 | 50 100 101 145 145 110 Average Speed 137 | 112 115 153 145 146 130 Slowest Speed 240 | 120 120 240 145 235 225 Overloaded Moves . | . . . . . . Propulsion Burnouts . | . . . . . . Robots Hopped . | . . . . . . Potential Cave-ins . | . . . . . . Cave-ins Triggered . | . . . . . . Exploration Rate (%) 52 | 5 97 46 19 94 51 Regions Visited 5 Branch Regions 3 Pre-discovered Areas . | . . . . . . Known Exits Taken 1 | . . 1 . . . Unknown Exits Taken 4 | 1 1 . 1 1 . Scrap Searched . | . . . . . . Spaces Dug 1 | . 1 . . . . Terrain Destroyed 44 | . 11 13 . 20 . Melee . | . . . . . . Projectile 1 | . 1 . . . . AOE 43 | . 10 13 . 20 . Terrain Rammed . | . . . . . . Walls Destroyed . | . . . . . . Machines Disabled . | . . . . . . Actions | -11 -10 -9 -9 -9 -8 --------- Run | Yrd Mat Mat Min Exi Min Total 3559 | 98 1003 763 114 1387 194 Wait 188 | 2 81 61 2 30 12 Move 2976 | 74 789 543 110 1283 177 Hop . | . . . . . . Pick Up 70 | 9 24 25 1 11 . Fast Attach 15 | 7 3 5 . . . Attach 23 | . 5 9 . 7 2 Detach . | . . . . . . Swap 31 | . 10 16 . 4 1 Drop 52 | 1 12 29 1 9 . Fire 202 | 5 79 75 . 43 . Melee 2 | . . . . . 2 Ram . | . . . . . . Kick . | . . . . . . Crush . | . . . . . . Escape Stasis . | . . . . . . Rewire . | . . . . . . Trap . | . . . . . . Miscellaneous . | . . . . . . Route ------- -11/Scrapyard -10/Materials (discovered 5 exits: *Mat x3 / *Min / [*Sub]) -9/Materials (discovered 4 exits: [*Mat x2] / *Min x2) -9/Mines (discovered 2 exits: [*Mat] / *Exi) -9/Exiles (discovered 2 exits: [*Min x2]) -8/Mines History --------- Turn | Location | Event 6 | -11/Scrapyard | Discovered new exit (range 15) 122 | -11/Scrapyard | Entered Materials 140 | -10/Materials | Identified exit to Mines 284 | -10/Materials | Discovered new exit (range 8) 326 | -10/Materials | Build established: Mutant 372 | -10/Materials | Discovered new exit (range 7) 874 | -10/Materials | Discovered new exit (range 10) 1101 | -10/Materials | Discovered new exit (range 5) 1215 | -10/Materials | Core integrity fell below 50% 1394 | -10/Materials | Entered another Materials area 1394 | -9/Materials | Evolved 2 slots: Propulsion x1, Utility x1 2116 | -9/Materials | Discovered new exit (range 15) 2234 | -9/Materials | Build established: Scavenger-Mutant 2298 | -9/Materials | Identified exit to Mines 2491 | -9/Materials | Discovered new exit (range 16) 2584 | -9/Materials | Entered Mines 2600 | -9/Mines | Discovered new exit (range 13) 2629 | -9/Mines | YI-UF0 nonchalantly dropped a Grenade Launcher on the ground 2742 | -9/Mines | Deemed a non-threat by the Exiles lab entrance 2742 | -9/Mines | Discovered new exit (range 5) 2747 | -9/Mines | Entered Exiles 2782 | -9/Exiles | Met 8R-AWN 2805 | -9/Exiles | Met EX-HEX 2865 | -9/Exiles | Met EX-DEC 2892 | -9/Exiles | Met EX-BIN 2913 | -9/Exiles | Aligned with FarCom system 2914 | -9/Exiles | Given EX-Vault access code 2962 | -9/Exiles | Opened EX-Vault 3001 | -9/Exiles | Warned to stay clear of 0b10 Research branches 3140 | -9/Exiles | Visited The Gauntlet 3356 | -9/Exiles | Discovered new exit (range 14) 3664 | -9/Exiles | Discovered new exit (range 14) 4197 | -9/Exiles | Attacked by the Exiles 4359 | -9/Exiles | Destroyed 8R-AWN 4365 | -9/Exiles | Found Prototype Protection 4368 | -9/Exiles | Found Prototype Processor 4378 | -9/Exiles | Lost 3 parts (1n2u) 4499 | -9/Exiles | Build established: Mutant 4552 | -9/Exiles | Found Superbattery 4559 | -9/Exiles | Found Field Lobotomy Kit 4794 | -9/Exiles | Stole two prototypes: Superbattery, Field Lobotomy Kit 4794 | -9/Exiles | Entered Mines 4848 | -8/Mines | AD-0RF came to Exiles' defense 4894 | -8/Mines | Core integrity fell below 50% 5028 | -8/Mines | Core integrity fell below 20% 5045 | -8/Mines | Destroyed by AD-0RF with AD-0RF's Magmablaster Last Messages --------------- 04848_ T-07 Excavator knocked back. 04849_ T-07 Excavator system terminally corrupted. 04849_ Lgt. Ion Engine fried. 04849_ Wheel fried. 04884_ Adv. Treads destroyed. 04914_ Imp. Heat Sink destroyed. 04962_ R-06 Scavenger destroyed. 04993_ Hvy. Ion Engine destroyed. 04993_ Com. Wheel destroyed. 04998_ K-01 Serf collects debris. 05017_ Imp. Assault Rifle destroyed. 05018_ K-01 Serf collects debris. 05022_ T-07 Excavator is excavating. 05036_ Adv. Treads destroyed. 05040_ T-07 Excavator is excavating. 05044_ L-31 Rogue heat short circuits Imp. Aluminum Leg. 05044_ L-31 Rogue destroyed. 05044_ T-07 Excavator is excavating. Map ----- +----------------------------------------------------+ | | | | | | | | | | | | | | | | | | | | | | | | | | | | | | | | | | | ?????????????????????????????????????? | | ?????????????????????????????????????? | | ?????????????????????????????????????? | | ?????????????????????????????????????? | | ?????????????????????????????????????? | | ?????????????????????????????????????? | | ?????????????????????????????????????? | | ?????????######??????????????????????? | | ?????????# @#??????????????????????? | | ?????????# t #??????????????????????? | | ?????????##l ##??????????????????????? | | ???????### =i#???????????????????????? | | ??????## gg%##???????????????????????? | | ?????## gg##????????????????????????? | | ????## ##?????????????????????????? | | ????# ##?????????????????????????? | | ???# ##????#####???????????????? | | ???###### ##??## ##??????????????? | | ????????## #### #??????????????? | | ????????## #??????????????? | | ????????# #??????????????## | | ??????# ### ##?????????????## | | ?????# ##?## ##?????????????# | | ?????# ##???# ##???????????## | | ?????## #???## ##?????????## | | ??????## ##???# #?????????# | | ???????## ?????# #?????????# | | ????????# ?????# ##?????????## | | ????????# ?????## ############# | | ????????# ??????## | | ????????# ???????# | | ????????? ???????# ########### | | ????????? ?????# #?????????## | +----------------------------------------------------+ Best States ------------- Heat Dissipation 52 Energy Generation 14 Energy Capacity 280 Matter Stores 300 Matter Capacity 300 Sight Range 16 Terrain Scan Density 10 Armor Coverage 450 Evasion (%) 55 Recoil Reduction 3 Item Schematics ----------------- None Robot Schematics ------------------ None Fabricated ------------ Nothing Repaired ---------- Nothing Studied --------- None Alien Tech Used ----------------- None Achievements -------------- Sixth Sense Challenges ------------ None Game ------ Seed ArmoredFactoryGreatsword Manual? 0 Play Time 00:56:47 Cumulative 233.8 hours Start 2025.12.24 @ 18:34:58 End 2025.12.24 @ 19:42:51 Sessions 1 Manual Loads 0 Difficulty Rogue Special Mode None Game No. 70 Rogue 70 Adventurer 0 Explorer 0 Win Type - Total 3 Types 2/0/0/1/0/0/0/0/0/0 Lore% 65 Gallery% 65 Achievement% 51 Wizard Run 0 Options --------- Layout 1 ASCII 0 Keyboard 0 Movement Mouse Keybinds 0 Fullscreen 1 Font 32/Smallcaps Map View 50x35 Zoom Use 0% Tactical HUD 1 Map Filters NONE Filters NONE Steam 1 RUN: 7dd68fa7-18a9-42ba-8972-1ad4ac7f665a